bitfinex/quotes_ETHUSD_20251008
["timestamp","ask_amount","ask_price","bid_price","bid_amount"]
[1759895081553,39.92365119,4448.4,4447.8,0.001]
[1759895082950,37.37765119,4448.4,4447.8,0.001]
[1759895083152,39.92365119,4448.4,4447.8,0.001]
[1759895089348,34.80170035,4448.2,4447.8,0.001]
[1759895089547,38.03123097,4448.2,4447.8,0.001]
[1759895089748,38.03583097,4448.2,4447.8,0.001]
[1759895090767,35.57997658,4448.2,4447.8,0.001]
[1759895090958,38.12597658,4448.2,4447.8,0.001]
[1759895092566,35.57997658,4448.2,4447.8,0.001]
[1759895092769,38.12597658,4448.2,4447.8,0.001]
[1759895093676,35.57997658,4448.2,4447.8,0.001]
[1759895093974,38.12597658,4448.2,4447.8,0.001]
[1759895095172,39.70468959,4448.2,4447.8,0.001]
[1759895095873,39.61454398,4448.2,4447.8,0.001]
[1759895096171,38.03583097,4448.2,4447.8,0.001]
[1759895096374,37.06854398,4448.2,4447.8,0.001]
[1759895096559,39.61454398,4448.2,4447.8,0.001]
[1759895097279,38.03583097,4448.2,4447.8,0.001]
[1759895098574,38.12597354,4448.2,4447.8,0.001]
[1759895098777,38.12697354,4448.2,4447.8,0.001]
[1759895099344,38.12697354,4448.2,4447.4,0.001]
[1759895099345,0.6336,4447.8,4447.4,0.001]
[1759895099552,2.5536,4447.6,4447.4,0.001]
[1759895099770,5.30736261,4447.5,4447.4,0.001]
[1759895099974,5.78873062,4447.5,4447.4,0.001]
[1759895101305,8.0371848,4447.5,4447.4,0.001]
[1759895102001,3.24173062,4447.5,4447.4,0.001]
[1759895102296,5.78873062,4447.5,4447.4,0.001]
[1759895102496,8.0371848,4447.5,4447.4,0.001]
[1759895103084,5.89988937,4447.5,4447.4,0.001]
[1759895103280,7.48449944,4447.5,4447.4,0.001]
[1759895103665,9.73295362,4447.5,4447.4,0.001]
[1759895104365,8.14834355,4447.5,4447.4,0.001]
[1759895105163,9.49734355,4447.5,4447.4,0.001]
[1759895105369,8.14834355,4447.5,4447.4,0.001]
[1759895105690,5.89988937,4447.5,4447.4,0.001]
[1759895106293,3.24173062,4447.5,4447.4,0.001]
[1759895106608,1.87786381,4447.5,4447.4,0.001]
[1759895106899,0.79630599,4447.8,4447.7,2.24835308]
[1759895107066,0.47676801,4448.0,4447.7,0.4955077]
[1759895107067,0.79630599,4448.0,4447.7,0.4955077]
[1759895107267,0.59675003,4447.9,4447.8,2.24830253]
[1759895107676,0.59675003,4447.9,4447.8,2.27078555]
[1759895108289,0.59675003,4448.0,4447.9,2.24825198]
[1759895109005,0.59675003,4448.1,4448.0,2.24820143]
[1759895109218,0.112,4448.0,4447.9,2.24825198]
[1759895109516,0.112,4448.0,4447.9,2.52263743]
[1759895109727,0.112,4448.0,4447.9,2.99363743]
[1759895111290,0.112,4448.0,4447.9,3.20363743]
[1759895111495,0.112,4448.0,4447.9,0.21]
[1759895111700,0.112,4448.0,4447.9,0.1954]
[1759895111701,4.5826,4448.0,4447.9,0.1954]
[1759895111933,7.30756944,4448.0,4447.9,0.1954]
[1759895112221,8.49794839,4448.0,4447.9,0.1954]
[1759895112423,7.30756944,4448.0,4447.9,0.1954]
[1759895112795,7.94116944,4448.0,4447.9,0.1954]
[1759895113100,7.94116944,4448.0,4447.4,0.001]
[1759895113101,2.88205418,4447.5,4447.4,0.001]
[1759895113285,6.28984553,4447.5,4447.4,0.001]
[1759895113477,6.76661354,4447.5,4447.4,0.001]
[1759895113712,13.79782219,4447.5,4447.4,0.001]
[1759895113882,12.72382219,4447.5,4447.4,0.001]
[1759895114088,37.82482219,4447.5,4447.4,0.001]
[1759895114717,7.10636801,4447.5,4447.4,0.001]
[1759895115024,4.94276801,4447.5,4447.4,0.001]
[1759895117288,5.57636801,4447.5,4447.4,0.001]
[1759895117710,7.82482219,4447.5,4447.4,0.001]
[1759895117906,5.57636801,4447.5,4447.4,0.001]
[1759895118117,3.03036801,4447.5,4447.4,0.001]
[1759895118289,5.57636801,4447.5,4447.4,0.001]
[1759895118690,7.82482219,4447.5,4447.4,0.001]
[1759895119027,9.22171475,4447.5,4447.4,0.001]
[1759895119225,9.22171787,4447.5,4447.4,0.001]
[1759895119703,8.03147633,4447.5,4447.4,0.001]
[1759895120122,9.22177792,4447.5,4447.4,0.001]
[1759895120695,3.23702215,4447.5,4447.4,0.001]
[1759895121017,9.22177792,4447.5,4447.4,0.001]
[1759895121325,8.03147633,4447.5,4447.4,0.001]
[1759895121907,5.78302215,4447.5,4447.4,0.001]
[1759895122890,8.03147633,4447.5,4447.4,0.001]
[1759895123310,5.78302215,4447.5,4447.4,0.001]
[1759895123527,2.60542215,4447.5,4447.4,0.001]
[1759895123713,4.67465414,4447.5,4447.4,0.001]
[1759895123913,5.15142215,4447.5,4447.4,0.001]
[1759895125023,7.39987633,4447.5,4447.4,0.001]
[1759895126100,5.15142215,4447.5,4447.4,0.001]
[1759895126793,8.03347633,4447.5,4447.4,0.001]
[1759895127197,9.22377792,4447.5,4447.4,0.001]
[1759895130328,39.22377792,4447.5,4447.4,0.001]
[1759895130533,38.03347633,4447.5,4447.4,0.001]
[1759895131127,38.03347633,4447.5,4447.3,0.001]
[1759895131128,4.91410474,4447.4,4447.3,0.001]
[1759895131426,35.59752689,4447.4,4447.3,0.001]
[1759895131728,25.10252689,4447.4,4447.3,0.001]
[1759895131933,3.34902215,4447.4,4447.3,0.001]
[1759895132230,5.78302215,4447.4,4447.3,0.001]
[1759895132429,9.22219863,4447.4,4447.3,0.001]
[1759895132823,6.97369389,4447.4,4447.3,0.001]
[1759895132998,8.14378488,4447.4,4447.3,0.001]
[1759895133406,5.89528014,4447.4,4447.3,0.001]
[1759895134032,5.59778488,4447.4,4447.3,0.001]
[1759895134236,8.14378488,4447.4,4447.3,0.001]
[1759895134632,5.89528014,4447.4,4447.3,0.001]
[1759895134843,9.33445662,4447.4,4447.3,0.001]
[1759895135448,25.21745662,4447.4,4447.3,0.001]
[1759895136913,24.02678488,4447.4,4447.3,0.001]
[1759895137119,25.21737045,4447.4,4447.3,0.001]
[1759895137437,24.02678488,4447.4,4447.3,0.001]
[1759895138650,38.14378488,4447.4,4447.3,0.001]
[1759895139149,38.23394573,4447.4,4447.3,0.001]
[1759895139448,38.23394573,4447.4,4447.1,0.01]
[1759895139449,34.80220586,4447.2,4447.1,0.01]
[1759895139620,39.62011305,4447.2,4447.1,0.01]
[1759895139815,38.03162801,4447.2,4447.1,0.01]
[1759895141231,40.0,4447.0,4446.5,0.001]
[1759895141437,4.80250927,4446.6,4446.5,0.001]
[1759895141617,8.03193142,4446.6,4446.5,0.001]
[1759895142024,8.03255424,4446.6,4446.5,0.001]
[1759895143056,5.78364497,4446.6,4446.5,0.001]
[1759895143363,2.60404497,4446.6,4446.5,0.011]
[1759895143572,0.20665414,4446.6,4446.5,0.011]
[1759895143777,2.75265414,4446.6,4446.5,0.011]
[1759895143982,0.20665414,4446.6,4446.5,0.011]
[1759895144576,2.75265414,4446.6,4446.5,0.011]
[1759895144943,3.34966308,4446.6,4446.5,0.011]
[1759895145181,3.23004497,4446.6,4446.5,0.011]
[1759895145474,5.26966308,4446.6,4446.5,0.011]
[1759895145970,4.67265414,4446.6,4446.5,0.011]
[1759895148476,2.12665414,4446.6,4446.5,0.011]
[1759895148784,5.26982143,4446.6,4446.5,0.011]
[1759895148988,4.67265414,4446.6,4446.5,0.011]
[1759895149651,2.12665414,4446.6,4446.5,0.011]
[1759895150885,2.72382143,4446.6,4446.5,0.011]
[1759895151104,2.12665414,4446.6,4446.5,0.011]
[1759895151588,2.12734963,4446.6,4446.5,0.011]
[1759895151792,2.7245335,4446.6,4446.5,0.011]
[1759895152553,2.76094963,4446.6,4446.5,0.011]
[1759895152785,5.30694963,4446.6,4446.5,0.011]
[1759895153094,2.5536,4446.5,4446.1,0.01]
[1759895153257,1.92,4446.3,4446.1,0.01]
[1759895153462,4.67329149,4446.2,4446.1,0.01]
[1759895153681,5.15094649,4446.2,4446.1,0.01]
[1759895154257,5.15093852,4446.2,4446.1,0.01]
[1759895159416,5.15093852,4446.2,4446.1,0.011]
[1759895159591,2.60493852,4446.2,4446.1,0.011]
[1759895159783,4.67328352,4446.2,4446.1,0.011]
[1759895159983,2.60493852,4446.2,4446.1,0.011]
[1759895160190,0.80422985,4446.2,4446.1,0.011]
[1759895160404,0.20728352,4446.2,4446.1,0.25951382]
[1759895160605,0.20729394,4446.3,4446.2,2.2491116]
[1759895160899,0.20729396,4446.4,4446.3,2.24906101]
[1759895161228,0.59894633,4446.6,4446.3,2.74367226]
[1759895161229,0.20729407,4446.5,4446.3,2.74367226]
[1759895161523,0.112,4446.3,4446.1,0.011]
[1759895161720,0.31929407,4446.3,4446.1,0.011]
[1759895161920,0.20729407,4446.2,4446.1,0.011]
[1759895162629,0.112,4446.3,4446.1,0.011]
[1759895163495,6.92240567,4446.2,4446.1,0.011]
[1759895163831,5.15094907,4446.2,4445.6,0.001]
[1759895164014,0.79573131,4445.9,4445.6,0.001]
[1759895164317,7.90925925,4446.2,4445.6,0.001]
[1759895164318,1.92,4445.7,4445.6,0.001]
[1759895164519,3.23094907,4445.7,4445.6,0.001]
[1759895164924,7.40031362,4445.7,4445.6,0.001]
[1759895165835,8.59444874,4445.7,4445.6,0.001]
[1759895166333,5.15094907,4445.7,4445.6,0.001]
[1759895166623,7.40031362,4445.7,4445.6,0.001]
[1759895166791,5.1507481,4445.7,4445.6,0.001]
[1759895167202,5.94589175,4445.7,4445.6,0.001]
[1759895167417,5.1507481,4445.7,4445.6,0.001]
[1759895168197,7.40011265,4445.7,4445.6,0.001]
[1759895168407,5.1507481,4445.7,4445.6,0.001]
[1759895170432,2.6047481,4445.7,4445.6,0.001]
[1759895170632,5.26926387,4445.7,4445.6,0.001]
[1759895170930,5.74691887,4445.7,4445.6,0.001]
[1759895171099,5.1507481,4445.7,4445.6,0.001]
[1759895172711,2.6047481,4445.7,4445.6,0.001]
[1759895173036,2.1270931,4445.7,4445.6,0.001]
[1759895173732,2.6047481,4445.7,4445.6,0.001]
[1759895173932,4.85411265,4445.7,4445.6,0.001]
[1759895174512,4.85411265,4445.7,4445.3,0.001]
[1759895174513,2.88311635,4445.4,4445.3,0.001]
[1759895174830,8.03386445,4445.4,4445.3,0.001]
[1759895175030,2.88321756,4445.2,4445.1,0.01]
[1759895175220,38.03396566,4445.2,4445.1,0.01]
[1759895175730,26.28531878,4445.0,4444.9,0.001]
[1759895175932,29.52006688,4445.0,4444.9,0.001]
[1759895177461,13.81006688,4445.0,4444.9,0.001]
[1759895177659,16.36406688,4445.0,4444.9,0.001]
[1759895178521,38.04206688,4445.0,4444.9,0.001]
[1759895179138,35.48806688,4445.0,4444.9,0.001]
[1759895179334,39.63336904,4445.0,4444.9,0.001]
[1759895180152,38.04206688,4445.0,4444.9,0.001]
[1759895180334,39.63336904,4445.0,4444.9,0.001]
[1759895180666,8.82376939,4444.9,4444.8,0.001]
[1759895180841,4.85383759,4444.9,4444.8,0.001]
[1759895181040,7.40883759,4444.9,4444.8,0.001]
[1759895181248,7.37443759,4444.9,4444.8,0.001]
[1759895181446,8.00803759,4444.9,4444.8,0.001]
[1759895181673,5.45303759,4444.9,4444.8,0.001]
[1759895181838,9.19698043,4444.9,4444.8,0.001]
[1759895182038,8.00803759,4444.9,4444.8,0.001]
[1759895183175,9.19678243,4444.9,4444.8,0.001]
[1759895183874,6.94701304,4444.9,4444.8,0.001]
[1759895184080,0.6840682,4444.9,4444.8,0.001]
[1759895184254,4.6814132,4444.9,4444.8,0.001]
[1759895184457,5.1590682,4444.9,4444.8,0.001]
[1759895184648,5.95126597,4444.9,4444.8,0.001]
[1759895184850,0.6840682,4444.9,4444.8,0.001]
[1759895185050,0.2064132,4444.9,4444.8,0.001]
[1759895185445,0.2064132,4444.9,4444.8,2.25082001]
[1759895185679,0.6840682,4445.2,4444.8,2.72574683]
[1759895185980,0.2064132,4445.1,4444.8,2.72574683]
[1759895187472,0.2064132,4445.1,4444.8,0.47592682]
[1759895188274,0.2064132,4445.1,4444.9,0.02249769]
[1759895188477,0.2064132,4445.1,4444.9,0.29508178]
[1759895188693,0.2064132,4445.1,4445.0,2.24971878]
[1759895189052,1.92,4445.5,4445.1,2.24962293]
[1759895189356,1.92,4445.5,4445.2,0.02249617]
[1759895189357,0.20640557,4445.4,4445.2,0.02249617]
[1759895189569,0.20640557,4445.4,4445.3,0.22721191]
[1759895189767,0.20640557,4445.4,4445.2,0.02249617]
[1759895190175,0.112,4445.2,4445.1,2.24966817]
[1759895190379,0.2064185,4445.3,4445.1,2.6985203]
[1759895190577,2.397655,4445.8,4445.2,0.2747214]
[1759895190783,0.20641898,4445.7,4445.6,2.24941515]
[1759895191083,0.20641898,4445.7,4445.6,2.2719093]
[1759895191290,2.554,4446.2,4445.8,2.2493091]
[1759895191291,2.399655,4446.1,4445.8,2.2493091]
[1759895191499,0.20641901,4446.0,4445.9,0.02249263]
[1759895191660,0.20641901,4446.0,4445.9,2.27175599]
[1759895191868,0.479655,4446.1,4446.0,2.24921277]
[1759895191869,0.002,4446.1,4446.0,2.24921277]
[1759895192100,0.002,4446.1,4446.0,5.74943647]
[1759895192798,0.20851325,4446.6,4446.0,5.74943647]
[1759895192799,0.002,4446.6,4446.5,2.24895985]
[1759895193099,0.002,4446.6,4446.5,4.82544944]
[1759895193297,0.002,4446.6,4446.5,5.51040854]
[1759895193498,0.002,4446.6,4446.5,5.95930854]
[1759895195290,0.002,4446.6,4446.5,6.41278804]
[1759895195799,1e-08,4447.0,4446.9,2.88235756]
[1759895195986,0.124,4447.9,4447.0,2.88230699]
[1759895196188,0.124,4447.9,4447.0,3.33120699]
[1759895197164,0.124,4447.9,4447.0,3.35369405]
[1759895197510,0.124,4447.9,4447.0,3.36369405]
[1759895197661,0.012,4447.9,4447.8,2.24830253]
[1759895197867,0.012,4447.9,4447.8,5.2744539]
[1759895198066,0.012,4447.9,4447.8,5.70087088]
[1759895198607,1e-08,4447.9,4447.8,6.33447088]
[1759895198897,1e-08,4447.9,4447.8,6.44647088]
[1759895201363,1e-08,4448.3,4448.2,2.88170035]
[1759895201673,1e-08,4448.3,4448.2,4.91410035]
[1759895201865,1e-08,4448.3,4448.2,17.17835287]
[1759895202065,0.00114857,4449.3,4449.2,2.88119507]
[1759895202287,0.002,4450.7,4449.8,2.24729201]
[1759895202494,0.114,4450.2,4449.8,4.80129201]
[1759895202869,0.114,4450.2,4449.6,2.24738473]
[1759895203074,0.114,4450.2,4449.8,2.554]
[1759895203470,0.002,4450.2,4449.8,2.554]
[1759895204565,0.002,4450.2,4449.8,4.80129201]
[1759895205374,0.002,4450.2,4449.8,5.24809201]
[1759895205975,0.002,4450.2,4449.8,3.0008]
[1759895206175,0.002,4450.2,4449.8,5.24809201]
[1759895206393,0.002,4450.2,4449.8,5.99763813]
[1759895206592,0.002,4450.2,4449.9,2.24724151]
[1759895206911,0.002,4450.7,4450.4,2.24696436]
[1759895207090,0.112,4450.6,4450.5,2.57546938]
[1759895207292,0.112,4450.6,4450.5,5.26920792]
[1759895207505,0.112,4450.6,4450.5,5.99835577]
[1759895210062,0.04724449,4450.6,4450.5,5.99835577]
[1759895210202,0.002,4451.1,4451.0,2.24668613]
[1759895210536,0.002,4452.4,4451.6,2.246359]
[1759895210694,0.002,4452.4,4451.7,2.57446332]
[1759895210898,0.002,4452.4,4451.7,3.03296332]
[1759895211204,0.002,4452.4,4451.8,0.4585]
[1759895211405,0.002,4452.4,4451.8,2.7047824]
[1759895212932,0.002,4452.4,4451.8,2.72724522]
[1759895213864,0.002,4452.4,4451.8,3.45734379]
[1759895215625,0.002,4452.4,4451.8,2.2462824]
[1759895217220,0.002,4452.4,4451.8,2.7047824]
[1759895218247,0.002,4452.4,4451.8,2.72724522]
[1759895219231,0.20429725,4452.3,4451.8,2.2462824]
[1759895219437,0.20429725,4452.2,4451.8,4.7972824]
[1759895219638,0.20429725,4452.1,4451.8,5.2557824]
[1759895219859,0.20429725,4452.0,4451.8,5.2557824]
[1759895220096,0.124,4451.9,4451.8,5.2557824]
[1759895220267,0.124,4451.9,4451.8,5.61314844]
[1759895220268,0.32829725,4451.9,4451.8,5.61314844]
[1759895221151,0.32829725,4451.9,4451.8,2.551]
[1759895221454,0.32829725,4451.9,4451.8,4.7972824]
[1759895221844,0.32829725,4451.9,4451.8,5.2557824]
[1759895222048,0.21629725,4451.9,4451.8,5.2557824]
[1759895222224,0.002,4452.4,4452.3,2.24603014]
[1759895222225,0.114,4452.4,4452.3,2.24603014]
[1759895222425,0.31946442,4452.4,4452.3,4.81949044]
[1759895222639,0.31946442,4452.4,4452.3,4.79703014]
[1759895222837,0.31946442,4452.4,4452.3,5.95984121]
[1759895227528,0.31946442,4452.4,4451.7,0.5705]
[1759895227740,0.31946442,4452.4,4451.1,0.45798057]
[1759895227741,0.20546442,4452.3,4452.2,2.24608058]
[1759895228061,0.112,4452.2,4451.4,0.4585]
[1759895228247,0.20546442,4452.1,4452.0,2.24618143]
[1759895228446,0.20546442,4452.1,4452.0,2.212]
[1759895228843,0.20546442,4452.1,4452.0,4.45818149]
[1759895229241,0.20546442,4452.1,4452.0,4.91668149]
[1759895229429,0.20546442,4452.1,4452.0,5.63297742]
[1759895230634,0.20546442,4452.1,4452.0,3.42097742]
[1759895230832,0.20546442,4452.1,4452.0,5.25368149]
[1759895231034,0.20546442,4452.1,4452.0,3.0075]
[1759895231283,0.20546442,4452.1,4452.0,5.25368149]
[1759895231485,0.20546442,4452.1,4452.0,2.549]
[1759895231767,0.112,4452.0,4451.6,0.4585]
[1759895231927,0.20546442,4451.9,4451.8,2.2462824]
[1759895232657,0.20546442,4451.9,4451.3,0.4585]
[1759895232843,0.59420621,4452.0,4450.6,0.001]
[1759895232844,0.59420621,4451.7,4451.4,2.549]
[1759895233163,0.20546442,4451.6,4451.5,2.72739811]
[1759895233376,0.31746442,4451.6,4451.5,5.27739811]
[1759895233557,0.31746442,4451.6,4451.5,5.25493378]
[1759895234253,0.31746442,4451.6,4451.5,6.03056772]
[1759895235236,0.7875856,4451.6,4451.5,6.03056772]
[1759895235437,0.31746442,4451.6,4451.5,6.03056772]
[1759895235655,0.20546442,4451.6,4451.5,6.03056772]
[1759895239066,0.79419777,4452.4,4451.5,6.03056772]
[1759895239067,0.59716908,4452.2,4451.5,4.41773394]
[1759895239378,0.002,4452.4,4452.3,2.24603014]
[1759895239538,0.002,4452.4,4452.3,4.81749044]
[1759895239733,0.002,4452.4,4452.3,5.25353014]
[1759895241463,0.002,4452.4,4452.3,5.88713014]
[1759895242273,0.002,4452.4,4452.3,3.33813014]
[1759895242475,0.002,4452.4,4452.3,6.46901393]
[1759895242661,0.002,4452.4,4452.3,6.44655363]
[1759895245688,1e-08,4452.9,4452.8,2.87937793]
[1759895245861,1e-08,4452.9,4452.8,6.0042636]
[1759895246062,1e-08,4452.9,4452.8,3.3955636]
[1759895246386,1e-08,4452.9,4452.8,5.25667793]
[1759895246581,1e-08,4452.9,4452.6,2.24587881]
[1759895246582,1e-08,4452.9,4452.2,0.4619]
[1759895246893,0.79219778,4452.9,4452.3,4.79601483]
[1759895247064,0.79219778,4452.9,4452.4,2.24597549]
[1759895247259,0.79219778,4452.9,4452.5,2.55]
[1759895247448,0.79219778,4452.9,4452.5,2.4756]
[1759895247870,1e-08,4452.9,4452.5,2.4756]
[1759895248195,1e-08,4452.9,4452.8,2.24577793]
[1759895248397,1e-08,4452.9,4452.8,4.79577793]
[1759895248608,1e-08,4452.9,4452.8,5.25767793]
[1759895249214,1e-08,4452.9,4452.8,2.55]
[1759895249365,1e-08,4452.9,4452.8,4.8182357]
[1759895249566,1e-08,4452.9,4452.8,4.79577793]
[1759895250062,1e-08,4452.9,4452.8,5.25767793]
[1759895250593,0.00200001,4452.9,4452.8,4.79577793]
[1759895251389,0.00200001,4452.9,4452.8,5.25767793]
[1759895251771,0.00200001,4452.9,4452.8,6.0080322]
[1759895252997,0.00200001,4452.9,4452.8,3.76225427]
[1759895253171,0.00200001,4452.9,4452.8,5.25767793]
[1759895256516,0.00200001,4452.9,4452.8,2.548]
[1759895256717,0.00200001,4452.9,4452.8,5.25567793]
[1759895260194,0.00200001,4452.9,4452.6,2.24587272]
[1759895260523,0.112,4452.7,4452.1,0.4483]
[1759895260723,0.112,4452.7,4452.2,2.82864756]
[1759895260920,0.112,4452.7,4452.3,0.4473]
[1759895261222,0.00200001,4452.9,4452.4,2.9953]
[1759895261429,0.00200001,4452.9,4452.5,2.9953]
[1759895261642,0.00200001,4452.9,4452.8,2.24577793]
[1759895261795,0.00200001,4452.9,4452.8,5.2635357]
[1759895261995,0.00200001,4452.9,4452.8,5.24107793]
[1759895262604,0.00200001,4452.9,4452.8,5.98977335]
[1759895272847,0.00200001,4452.9,4452.8,3.44177335]
[1759895273146,0.00200001,4452.9,4452.8,1.21845319]
[1759895273324,0.00200001,4452.9,4452.8,5.23907793]
[1759895274953,1e-08,4453.0,4452.9,2.8793275]
[1759895275152,0.002,4453.4,4453.3,2.24552578]
[1759895275351,0.002,4453.8,4453.7,2.24532411]
[1759895275651,0.79219777,4455.6,4453.8,2.24527369]
[1759895275854,0.79219777,4455.6,4453.8,2.71757369]
[1759895276224,0.79219777,4455.7,4453.8,2.71757369]
[1759895277045,0.79219777,4455.7,4453.8,2.74002642]
[1759895278046,0.01,4455.9,4453.8,2.74002642]
[1759895278047,0.79219777,4455.8,4453.8,2.74002642]
[1759895279240,0.79219777,4455.8,4453.3,2.47007836]
[1759895279241,0.0371,4454.9,4453.3,0.69685258]
[1759895279421,0.0371,4454.9,4453.4,3.06270257]
[1759895279624,0.0371,4454.9,4453.8,2.24527369]
[1759895279927,0.0371,4454.9,4453.8,4.79127369]
[1759895280140,0.0371,4454.9,4453.8,2.546]
[1759895280343,0.0371,4454.9,4453.8,4.79127369]
[1759895280526,0.0371,4454.9,4453.8,2.546]
[1759895280726,0.0371,4454.9,4453.5,0.4723]
[1759895280953,0.0371,4454.9,4453.8,2.24527369]
[1759895281150,0.0371,4454.9,4453.8,4.79127369]
[1759895281488,0.0371,4454.9,4453.8,5.26357369]
[1759895282362,0.0371,4454.9,4453.8,3.0183]
[1759895282573,0.0371,4454.9,4453.8,5.26357369]
[1759895282775,0.0371,4454.9,4453.8,4.79127369]
[1759895283980,0.0371,4454.9,4453.8,2.71757369]
[1759895284186,0.0371,4454.9,4453.8,5.26357369]
[1759895284338,0.0371,4454.9,4453.8,2.546]
[1759895284538,0.0271,4454.6,4453.8,2.546]
[1759895284781,0.0271,4454.6,4453.3,0.4723]
[1759895285077,0.112,4453.6,4453.5,2.24542494]
[1759895285869,0.112,4453.6,4453.5,5.26372494]
[1759895290586,0.012,4453.9,4453.5,5.26372494]
[1759895290587,0.012,4453.9,4453.8,2.24527369]
[1759895290785,0.012,4453.9,4453.8,4.81272642]
[1759895290940,0.012,4453.9,4453.8,4.79027369]
[1759895291274,0.012,4453.9,4453.8,5.26257369]
[1759895291452,0.012,4453.9,4453.8,6.08846093]
[1759895294185,0.012,4453.9,4453.8,6.08746093]
[1759895294589,0.012,4453.9,4453.8,3.54346093]
[1759895294967,0.012,4453.9,4453.8,0.82588724]
[1759895295198,0.012,4453.9,4453.8,3.0173]
[1759895295700,0.012,4453.9,4453.8,5.26257369]
[1759895295897,0.012,4453.9,4453.8,2.545]
[1759895296995,0.012,4453.9,4453.8,4.79027369]
[1759895297181,0.012,4453.9,4453.8,2.24527369]
[1759895297374,0.012,4453.9,4453.8,4.79027369]
[1759895298205,0.012,4453.9,4453.8,2.24527369]
[1759895298376,0.012,4453.9,4453.8,4.79027369]
[1759895298773,0.012,4453.9,4452.5,0.001]
[1759895298973,0.012,4453.9,4452.7,2.24582837]
[1759895299299,0.012,4453.9,4453.5,2.24539411]
[1759895299498,0.012,4453.9,4453.6,2.545]
[1759895299704,0.012,4453.9,4453.7,2.545]
[1759895299903,0.012,4453.9,4452.8,0.4723]
[1759895300084,0.012,4453.9,4452.9,2.545]
[1759895300408,0.59983929,4453.7,4453.0,2.545]
[1759895300706,0.20827362,4453.6,4453.0,2.56745677]
[1759895300908,0.20827362,4453.5,4453.0,2.56745677]
[1759895301075,0.20827362,4453.4,4453.0,2.56745677]
[1759895301270,0.62693929,4453.8,4453.0,2.56745677]
[1759895301594,0.20815339,4453.7,4453.0,2.56745677]
[1759895302106,0.20815339,4453.7,4453.0,4.81313238]
[1759895302306,0.20815339,4453.7,4453.0,4.79067561]
[1759895302475,0.20815339,4453.6,4453.1,0.02245626]
[1759895302675,0.20815339,4453.5,4453.1,0.02245626]
[1759895303003,0.20815339,4453.4,4453.1,0.02245626]
[1759895303306,0.20815339,4453.3,4453.1,0.02245626]
[1759895303486,0.20815339,4453.2,4453.1,0.02245626]
[1759895303682,0.23525339,4453.8,4453.1,0.02245626]
[1759895304010,0.20815339,4453.7,4453.1,0.02245626]
[1759895304294,0.20815339,4453.6,4453.1,0.02245626]
[1759895304481,0.20815339,4453.5,4453.2,2.24557543]
[1759895304687,0.20815339,4453.4,4453.3,2.545]
[1759895305003,0.20815339,4453.4,4452.5,0.001]
[1759895305195,0.112,4452.9,4452.8,2.24577793]
[1759895305395,0.112,4452.9,4452.8,4.78977793]
[1759895305807,0.112,4452.9,4452.8,2.544]
[1759895306006,0.112,4452.9,4452.8,4.78977793]
[1759895306215,0.112,4452.9,4452.8,2.544]
[1759895309012,0.112,4452.9,4452.8,2.24577793]
[1759895309216,0.112,4452.9,4452.8,4.79077793]
[1759895309907,0.112,4452.9,4452.8,2.545]
[1759895310307,0.112,4452.9,4452.8,4.79077793]
[1759895313191,0.112,4452.9,4452.8,5.25717793]
[1759895313509,0.112,4452.9,4452.8,4.79077793]
[1759895314288,0.112,4452.9,4452.6,2.24586663]
[1759895314489,0.20772713,4453.6,4452.7,2.544]
[1759895314691,0.20772713,4453.5,4452.7,4.78982578]
[1759895314890,0.20772713,4453.4,4452.7,4.78982578]
[1759895315116,0.0271,4453.7,4452.7,4.78982578]
[1759895315117,0.20772713,4453.3,4452.7,4.78982578]
[1759895315319,0.0271,4453.7,4452.7,4.78982578]
[1759895315320,0.20772713,4453.2,4452.7,4.78982578]
[1759895315527,0.0271,4453.7,4452.7,4.78982578]
[1759895316129,0.0271,4453.7,4452.8,0.02245777]
[1759895316329,0.23481722,4453.7,4452.9,4.78968167]
[1759895316539,0.20771722,4453.6,4453.0,0.02245677]
[1759895316723,0.20771722,4453.5,4453.1,2.544]
[1759895317029,0.20771722,4453.4,4453.1,2.544]
[1759895317234,0.20771722,4453.3,4453.1,2.544]
[1759895317404,0.20771722,4453.2,4453.1,2.544]
[1759895317799,0.0271,4453.7,4453.1,2.544]
[1759895318707,0.23481722,4453.7,4453.1,2.544]
[1759895318910,0.112,4453.1,4452.5,0.06345929]
[1759895319230,0.20771722,4453.6,4452.6,2.544]
[1759895319430,0.20771722,4453.5,4453.4,2.24547536]
[1759895319636,0.112,4453.5,4453.4,5.25587536]
[1759895319837,0.012,4453.9,4453.8,2.24527369]
[1759895320040,0.012,4453.9,4453.8,5.26078856]
[1759895320204,0.012,4453.9,4453.8,5.69243583]
[1759895320921,0.002,4454.4,4454.3,2.24502166]
[1759895321110,0.002,4454.4,4454.3,4.78902166]
[1759895321433,0.002,4454.4,4454.3,5.94653368]
[1759895324824,0.002,4454.4,4454.3,9.09677466]
[1759895331138,0.002,4454.4,4454.3,9.84237466]
[1759895331376,0.002,4454.4,4454.3,10.04237466]
[1759895332440,0.002,4454.4,4454.3,24.54237466]
[1759895333067,0.002,4454.4,4454.3,21.99837466]
[1759895333371,0.002,4454.4,4454.3,7.49837466]
[1759895333674,0.002,4454.4,4454.3,10.04137466]
[1759895334039,0.002,4454.4,4454.3,9.84137466]
[1759895334376,0.002,4454.4,4454.3,7.29837466]
[1759895334881,0.002,4454.4,4454.3,9.84137466]
[1759895335342,0.002,4454.8,4454.7,2.87842007]
[1759895335343,1e-08,4454.8,4454.7,2.87842007]
[1759895335541,0.012,4454.9,4454.8,2.87836968]
[1759895335542,1e-08,4454.9,4454.8,2.87836968]
[1759895335869,1e-08,4454.9,4454.8,4.43281275]
[1759895336943,1e-08,4454.9,4454.8,7.17581275]
[1759895337472,1e-08,4454.9,4454.8,6.97581275]